bitfinex/quotes_SOLUSD_20250308
["timestamp","ask_amount","ask_price","bid_price","bid_amount"]
[1741445960550,0.03,137.51,137.48,21.19010451]
[1741445960917,0.03,137.51,137.48,13.91640451]
[1741445961243,0.17216157,137.51,137.48,13.91640451]
[1741445961843,0.03,137.51,137.48,21.19010451]
[1741445962141,0.03,137.51,137.48,13.91640451]
[1741445963926,0.17216157,137.51,137.48,13.91640451]
[1741445964425,0.14216157,137.49,137.48,104.9]
[1741445964625,0.14216157,137.49,137.44,118.84940451]
[1741445964822,7.41566157,137.49,137.44,118.84940451]
[1741445965246,0.14216157,137.47,137.44,0.033]
[1741445965645,13.55856608,137.48,137.44,0.033]
[1741445966931,7.2743,137.47,137.44,0.033]
[1741445967626,0.14216157,137.46,137.44,0.033]
[1741445969143,7.41606157,137.48,137.44,0.033]
[1741445973444,7.41606157,137.48,137.44,13.94940451]
[1741445975357,0.14216157,137.48,137.44,21.22500451]
[1741445975564,14.08856608,137.51,137.46,13.91640451]
[1741445976451,21.36076608,137.51,137.46,13.91640451]
[1741445977033,7.44436157,137.51,137.46,13.91640451]
[1741445977361,7.44436157,137.51,137.48,13.91640451]
[1741445977362,0.17216157,137.51,137.48,13.91640451]
[1741445977860,0.17216157,137.51,137.47,13.91640451]
[1741445980158,0.17216157,137.51,137.46,126.09120451]
[1741445980554,14.05856608,137.49,137.44,0.033]
[1741445980957,21.33216608,137.49,137.44,0.033]
[1741445984682,21.33216608,137.49,137.44,13.94940451]
[1741445988071,21.33216608,137.49,137.44,0.033]
[1741445989872,7.2736,137.49,137.44,0.033]
[1741445990172,21.19000451,137.49,137.44,0.033]
[1741445991774,0.14216157,137.48,137.44,0.033]
[1741445991962,7.41606157,137.48,137.44,0.033]
[1741445993281,7.41606157,137.48,137.44,13.94940451]
[1741445994362,0.14216157,137.48,137.45,13.91640451]
[1741445994670,7.44446157,137.51,137.46,13.91640451]
[1741445994857,13.91640451,137.5,137.44,118.84940451]
[1741445995062,14.05856608,137.49,137.44,104.933]
[1741445996277,21.33226608,137.49,137.44,104.933]
[1741445996772,0.14216157,137.49,137.44,126.12510451]
[1741445997279,7.41556157,137.49,137.44,112.2087]
[1741445997977,7.41556157,137.49,137.44,104.933]
[1741445998666,21.33196608,137.49,137.44,0.033]
[1741446000279,0.14216157,137.47,137.44,0.033]
[1741446000488,14.05856608,137.47,137.44,0.033]
[1741446000666,0.14216157,137.45,137.44,0.033]
[1741446001173,14.05856608,137.45,137.44,0.033]
[1741446003288,0.14216157,137.45,137.44,0.033]
[1741446005478,14.05856608,137.45,137.44,0.033]
[1741446005707,22.92846608,137.45,137.44,0.033]
[1741446008882,50.14216157,137.41,137.4,0.033]
[1741446009203,70.59856608,137.41,137.4,0.033]
[1741446010815,77.87596608,137.41,137.4,0.033]
[1741446010978,79.47056608,137.41,137.4,0.033]
[1741446011179,50.14216157,137.39,137.38,0.033]
[1741446011496,0.14216157,137.39,137.38,0.033]
[1741446012697,0.14216157,137.39,137.38,7.312]
[1741446013081,0.14216157,137.39,137.38,0.033]
[1741446015693,71.33706608,137.39,137.38,0.033]
[1741446016425,77.87706608,137.39,137.38,0.033]
[1741446016717,70.59856608,137.39,137.38,0.033]
[1741446017984,56.68216157,137.39,137.38,0.033]
[1741446023137,70.59856608,137.39,137.38,0.033]
[1741446026738,77.87706608,137.39,137.38,0.033]
[1741446031029,0.14216157,137.35,137.3,29.47940451]
[1741446032317,0.14216157,137.35,137.3,22.19620451]
[1741446032817,0.14216157,137.33,137.3,8.2798]
[1741446033006,0.14216157,137.33,137.3,6.665]
[1741446035140,14.05856608,137.33,137.3,0.033]
[1741446035628,0.14216157,137.33,137.3,0.033]
[1741446038071,14.05856608,137.31,137.3,0.033]
[1741446038559,21.34126608,137.31,137.3,0.033]
[1741446040245,21.34126608,137.31,137.3,0.0001]
[1741446041368,39.99091494,137.31,137.3,0.0001]
[1741446043456,26.07451043,137.31,137.3,0.0001]
[1741446043760,46.55091494,137.31,137.3,0.0001]
[1741446046536,27.90126608,137.31,137.3,0.0001]
[1741446046731,6.70216157,137.31,137.3,0.0001]
[1741446047259,13.98486157,137.31,137.3,0.0001]
[1741446047846,27.90126608,137.31,137.3,0.0001]
[1741446050574,27.93126608,137.31,137.3,0.0001]
[1741446051845,46.58091494,137.31,137.3,0.0001]
[1741446052861,27.93126608,137.31,137.3,0.0001]
[1741446053033,46.58091494,137.31,137.3,0.0001]
[1741446058162,46.58091494,137.31,137.24,0.0329]
[1741446058163,50.14216157,137.28,137.24,0.0329]
[1741446058355,0.14216157,137.24,137.21,2.1586358]
[1741446058566,0.14216157,137.22,137.21,2.1586358]
[1741446059550,0.14216157,137.26,137.21,29.78964031]
[1741446059867,0.14216157,137.26,137.23,13.91640451]
[1741446060369,0.14216157,137.26,137.24,13.91640451]
[1741446062348,0.14216157,137.26,137.24,0.033]
[1741446062562,0.14216157,137.26,137.24,13.94940451]
[1741446064282,0.14216157,137.26,137.24,0.033]
[1741446064570,0.33448303,137.26,137.24,0.033]
[1741446065167,7.61998303,137.26,137.24,0.033]
[1741446066313,0.33448303,137.26,137.24,0.033]
[1741446067475,7.61988303,137.26,137.24,0.033]
[1741446069396,21.53628754,137.26,137.24,0.033]
[1741446069688,7.61988303,137.26,137.24,0.033]
[1741446070487,0.33448303,137.26,137.24,0.033]
[1741446071889,21.53628754,137.26,137.24,0.033]
[1741446072389,7.61988303,137.26,137.24,0.033]
[1741446073088,0.33448303,137.26,137.24,0.033]
[1741446074289,0.33448303,137.26,137.25,22.01550451]
[1741446074290,0.19232146,137.26,137.25,22.01550451]
[1741446074489,0.22232146,137.26,137.25,22.01550451]
[1741446074871,0.22232146,137.26,137.25,29.30140451]
[1741446079307,0.22232146,137.26,137.25,22.01550451]
[1741446079678,0.22232146,137.26,137.25,6.4499]
[1741446080406,0.36448303,137.26,137.24,0.033]
[1741446080906,0.14216157,137.25,137.24,0.033]
[1741446081394,7.42806157,137.25,137.24,0.033]
[1741446081574,0.14216157,137.25,137.24,0.033]
[1741446082582,0.22232146,137.26,137.24,0.033]
[1741446083288,0.14216157,137.25,137.24,0.033]
[1741446083474,7.42806157,137.25,137.24,0.033]
[1741446083899,27.90446608,137.25,137.24,0.033]
[1741446084090,13.98806157,137.25,137.24,0.033]
[1741446084275,27.90446608,137.25,137.24,0.033]
[1741446089679,6.70216157,137.25,137.24,0.033]
[1741446090209,13.98806157,137.25,137.24,0.033]
[1741446090420,27.90446608,137.25,137.24,0.033]
[1741446090793,50.14216157,137.22,137.21,2.1586358]
[1741446091022,64.05856608,137.22,137.21,2.1586358]
[1741446093010,71.34606608,137.22,137.21,2.1586358]
[1741446093427,7.42966157,137.22,137.21,2.1586358]
[1741446093716,21.34606608,137.22,137.21,2.1586358]
[1741446094309,71.34606608,137.22,137.21,2.1586358]
[1741446096311,0.14216157,137.22,137.21,2.1586358]
[1741446098515,0.14216157,137.22,137.21,2.1916358]
[1741446101296,7.42966157,137.22,137.21,2.1916358]
[1741446101495,21.34606608,137.22,137.21,2.1916358]
[1741446101916,7.42966157,137.22,137.21,2.1916358]
[1741446103316,21.34606608,137.22,137.21,2.1916358]
[1741446103617,71.34606608,137.22,137.21,2.1916358]
[1741446105020,21.34606608,137.22,137.21,2.1916358]
[1741446105198,7.42966157,137.22,137.21,2.1916358]
[1741446105401,0.14216157,137.22,137.21,2.1916358]
[1741446105622,7.42966157,137.22,137.21,2.1916358]
[1741446107219,21.34606608,137.22,137.21,2.1916358]
[1741446107412,71.34606608,137.22,137.21,2.1916358]
[1741446110521,0.14216157,137.22,137.21,2.1916358]
[1741446111110,21.34606608,137.22,137.21,2.1916358]
[1741446115050,7.42966157,137.22,137.21,2.1916358]
[1741446115343,13.98966157,137.22,137.21,2.1916358]
[1741446118433,27.90606608,137.22,137.21,2.1916358]
[1741446121447,6.70216157,137.22,137.21,2.1916358]
[1741446121746,27.90606608,137.22,137.21,2.1916358]
[1741446123834,6.70216157,137.22,137.21,2.1916358]
[1741446124521,13.98966157,137.22,137.21,2.1916358]
[1741446124721,6.70216157,137.22,137.21,2.1916358]
[1741446125157,0.14216157,137.22,137.21,24.13584031]
[1741446125324,0.14216157,137.22,137.21,31.42384031]
[1741446125650,0.14216157,137.22,137.21,24.13584031]
[1741446126034,0.14216157,137.22,137.21,10.2194358]
[1741446134852,0.14216157,137.22,137.21,8.6110358]
[1741446135664,7.42966157,137.22,137.21,8.6110358]
[1741446135869,7.42966157,137.22,137.21,2.1916358]
[1741446136970,6.92966157,137.22,137.21,2.1916358]
[1741446137326,20.84606608,137.22,137.21,2.1916358]
[1741446138684,13.8471,137.23,137.21,2.1916358]
[1741446138978,14.05856608,137.22,137.21,2.1916358]
[1741446139549,0.14216157,137.22,137.21,2.1916358]
[1741446140956,7.42966157,137.22,137.21,2.1916358]
[1741446141548,21.34606608,137.22,137.21,2.1916358]
[1741446141969,7.42966157,137.22,137.21,2.1916358]
[1741446142370,0.14216157,137.22,137.21,2.1916358]
[1741446145154,0.03,137.24,137.21,135.89814031]
[1741446145391,0.03,137.24,137.23,13.91640451]
[1741446146054,0.03,137.24,137.21,121.9817358]
[1741446146370,0.17216157,137.24,137.21,114.6937358]
[1741446148159,0.03,137.24,137.21,128.61014031]
[1741446149156,0.03,137.24,137.22,13.91640451]
[1741446149356,0.03,137.24,137.21,30.99814031]
[1741446151659,0.03,137.24,137.22,13.91640451]
[1741446151862,0.03,137.24,137.23,13.91640451]
[1741446152158,0.03,137.24,137.23,137.46605337]
[1741446153384,0.03,137.24,137.23,144.75305337]
[1741446159688,0.03,137.25,137.24,18.64964886]
[1741446159889,0.22232146,137.26,137.25,8.2386]
[1741446160063,0.22232146,137.26,137.25,22.15500451]
[1741446160865,2.146e-05,137.26,137.25,40.80465337]
[1741446161267,0.03,137.31,137.26,18.64964886]
[1741446161481,0.03,137.31,137.3,13.91640451]
[1741446161691,0.03,137.31,137.3,21.19970451]
[1741446162084,0.03,137.31,137.27,160.56561804]
[1741446162085,0.03,137.31,137.29,13.91640451]
[1741446162289,0.03,137.31,137.28,13.91640451]
[1741446162667,0.03,137.31,137.29,13.91640451]
[1741446163274,0.03,137.31,137.3,13.91640451]
[1741446164086,0.03,137.31,137.3,144.74935337]
[1741446164287,0.03,137.31,137.3,152.98795337]
[1741446164696,0.14216157,137.36,137.31,18.64964886]
[1741446164906,0.03,137.38,137.31,6.54]
[1741446165189,21.33816608,137.37,137.31,20.45640451]
[1741446165366,0.14216157,137.35,137.3,134.33830451]
[1741446165569,14.05856608,137.35,137.3,127.05500451]
[1741446166292,7.42226157,137.36,137.32,13.91640451]
[1741446166501,0.14216157,137.36,137.32,13.91640451]
[1741446166797,0.14216157,137.36,137.31,13.91640451]
[1741446167166,21.33876608,137.36,137.31,13.91640451]
[1741446170578,7.42236157,137.36,137.31,13.91640451]
[1741446170877,21.33876608,137.36,137.31,13.91640451]
[1741446172093,7.42236157,137.36,137.31,13.91640451]
[1741446172678,21.33876608,137.36,137.31,13.91640451]
[1741446174180,7.42236157,137.36,137.32,13.91640451]
[1741446175501,21.33876608,137.36,137.31,13.91640451]
[1741446181306,0.14216157,137.34,137.3,118.84940451]
[1741446181689,0.14216157,137.34,137.3,13.94940451]
[1741446182704,0.14216157,137.35,137.3,13.94940451]
[1741446182905,0.14216157,137.35,137.31,13.91640451]
[1741446183203,7.42326157,137.35,137.31,13.91640451]
[1741446183903,7.42326157,137.35,137.3,13.94940451]
[1741446185484,21.33966608,137.35,137.3,13.94940451]
[1741446187708,21.33966608,137.35,137.3,0.033]
[1741446187709,0.14216157,137.32,137.3,0.033]
[1741446187895,14.05856608,137.32,137.3,0.033]
[1741446188295,51.5804,137.34,137.3,0.033]
[1741446188296,14.05856608,137.33,137.3,0.033]
[1741446189191,0.14216157,137.31,137.3,0.033]
[1741446190789,7.42486157,137.31,137.3,0.033]
[1741446193999,21.34126608,137.31,137.3,0.033]
[1741446194995,7.42486157,137.31,137.3,0.033]
[1741446196315,21.34126608,137.31,137.3,0.033]
[1741446196819,7.42486157,137.31,137.3,0.033]
[1741446197126,0.14216157,137.31,137.3,0.033]
[1741446197297,0.14216157,137.32,137.3,13.94940451]
[1741446197619,0.14216157,137.32,137.3,0.033]
[1741446198526,0.14216157,137.31,137.3,0.033]
[1741446200306,0.14216157,137.33,137.3,0.033]
[1741446200518,7.42406157,137.33,137.3,0.033]
[1741446200819,21.34046608,137.33,137.3,0.033]
[1741446201622,0.14216157,137.31,137.3,0.033]
[1741446202206,14.05856608,137.31,137.3,0.033]
[1741446202407,21.34126608,137.31,137.3,0.033]
[1741446204603,7.42486157,137.31,137.3,0.033]
[1741446205504,21.34126608,137.31,137.3,0.033]
[1741446207533,21.37126608,137.31,137.3,0.033]
[1741446211345,21.37126608,137.31,137.3,0.0001]
[1741446211837,40.02091494,137.31,137.3,0.0001]
[1741446214547,43.67365089,137.31,137.3,0.0001]
[1741446223223,0.14216157,137.25,137.21,3.7785358]
[1741446223423,50.0,137.26,137.21,3.7785358]
[1741446223424,0.14216157,137.23,137.21,3.7785358]
[1741446224223,14.05856608,137.25,137.21,3.7785358]
[1741446224643,0.14216157,137.23,137.21,3.7785358]
[1741446225844,0.14216157,137.24,137.21,3.7785358]
[1741446226427,14.05856608,137.24,137.21,3.7785358]
[1741446226836,21.34526608,137.24,137.21,3.7785358]
[1741446228833,14.05856608,137.22,137.21,2.1916358]
[1741446231043,21.34606608,137.22,137.21,2.1916358]
[1741446232242,14.05856608,137.22,137.21,2.1916358]
[1741446232424,0.14216157,137.22,137.21,2.1916358]
[1741446232846,0.14216157,137.22,137.21,24.31644031]
[1741446233046,0.14216157,137.22,137.21,31.60444031]
[1741446233448,0.14216157,137.22,137.21,17.6880358]
[1741446234057,0.14216157,137.22,137.21,31.60444031]
[1741446235171,0.14216157,137.22,137.21,50.25408917]
[1741446235344,0.14216157,137.26,137.22,18.64964886]
[1741446235672,0.14216157,137.26,137.24,13.91640451]
[1741446236544,0.14216157,137.26,137.25,21.20230451]
[1741446237340,0.14216157,137.29,137.25,21.20230451]
[1741446237542,0.14216157,137.29,137.25,7.2859]
[1741446237980,0.14216157,137.28,137.24,13.91640451]
[1741446238137,0.14216157,137.28,137.24,7.2863]
[1741446238550,14.05856608,137.28,137.24,7.2863]
[1741446238763,0.14216157,137.28,137.24,7.2863]
[1741446240742,0.14216157,137.27,137.23,126.10330451]
[1741446241072,14.05856608,137.27,137.23,104.9]
[1741446241276,14.05856608,137.27,137.22,21.20380451]
[1741446241571,0.14216157,137.25,137.21,147.86608917]
[1741446242274,14.05856608,137.27,137.21,147.86608917]
[1741446242439,0.14216157,137.25,137.21,115.3000358]
[1741446242643,14.05856608,137.24,137.21,8.8059358]
[1741446242846,0.14216157,137.24,137.21,8.8059358]
[1741446245676,7.42876157,137.24,137.21,2.1916358]
[1741446245968,21.34516608,137.24,137.21,2.1916358]
[1741446246850,14.05856608,137.22,137.21,2.1916358]
[1741446248597,21.34606608,137.22,137.21,2.1916358]
[1741446251377,77.88606608,137.22,137.21,2.1916358]
[1741446255263,81.54403229,137.22,137.21,2.1916358]
[1741446256298,100.19368115,137.22,137.21,2.1916358]
[1741446256695,81.54403229,137.22,137.21,2.1916358]
[1741446256867,100.19368115,137.22,137.21,2.1916358]
[1741446257778,0.14216157,137.17,137.16,0.033]
[1741446257966,14.05856608,137.17,137.16,0.033]
[1741446258165,20.59856608,137.17,137.16,0.033]
[1741446258371,13.97236157,137.17,137.16,0.033]
[1741446258567,27.88876608,137.17,137.16,0.033]
[1741446259161,46.53841494,137.17,137.16,0.033]
[1741446259366,0.14216157,137.12,137.04,104.9]
[1741446259567,0.14216157,137.04,137.0,116.1991]
[1741446259863,0.14216157,137.04,137.0,130.11550451]
[1741446260071,0.14216157,137.05,137.0,130.11550451]
[1741446260271,0.14216157,137.05,137.02,13.91640451]
[1741446260472,0.14216157,137.05,137.01,13.91640451]
[1741446260677,0.14216157,137.05,137.02,13.91640451]
[1741446261075,0.14216157,137.05,137.03,13.91640451]
[1741446261277,0.14216157,137.08,137.03,13.91640451]
[1741446261500,14.05856608,137.08,137.03,13.91640451]
[1741446262482,14.05856608,137.09,137.04,13.91640451]
[1741446262785,14.05856608,137.09,137.03,13.91640451]
[1741446263403,14.05856608,137.09,137.04,13.91640451]
[1741446263777,14.05856608,137.09,137.03,21.21360451]
[1741446264372,14.05856608,137.09,137.04,13.91640451]
[1741446264595,0.14216157,137.09,137.04,13.91640451]
[1741446265005,14.05856608,137.09,137.04,13.91640451]
[1741446265187,0.14216157,137.11,137.06,13.91640451]
[1741446265389,0.14216157,137.11,137.07,13.91640451]
[1741446265575,0.14216157,137.11,137.07,21.21160451]
[1741446266220,0.14216157,137.12,137.1,13.91640451]
[1741446267027,0.14216157,137.12,137.09,13.91640451]
[1741446267307,0.14216157,137.1,137.08,104.9]
[1741446267515,0.14216157,137.09,137.08,104.9]
[1741446267674,14.05856608,137.09,137.06,6.2718]
[1741446268094,0.14216157,137.1,137.06,13.5678]
[1741446268381,0.14216157,137.1,137.06,6.2718]
[1741446268576,14.05856608,137.1,137.06,6.2718]
[1741446268883,0.14216157,137.1,137.06,13.5678]
[1741446269087,0.14216157,137.1,137.06,6.2718]
[1741446269281,14.05856608,137.1,137.06,6.2718]
[1741446269802,0.14216157,137.1,137.06,27.48410451]
[1741446271307,0.14216157,137.1,137.06,6.2718]
[1741446271509,21.35266608,137.1,137.05,13.91640451]
[1741446271816,21.35266608,137.1,137.05,21.21290451]
[1741446272197,14.05856608,137.1,137.05,21.21290451]
[1741446272400,0.14216157,137.1,137.05,21.21290451]
[1741446273220,0.14216157,137.1,137.06,13.91640451]
[1741446273386,0.14216157,137.1,137.05,7.2965]
[1741446273719,0.14216157,137.1,137.05,21.21290451]
[1741446274616,0.14216157,137.1,137.06,13.91640451]
[1741446274821,0.14216157,137.12,137.07,13.91640451]
[1741446275006,0.14216157,137.12,137.08,13.91640451]
[1741446275596,0.14216157,137.13,137.09,13.91640451]
[1741446275826,0.14216157,137.13,137.1,13.91640451]
[1741446276028,6.68216157,137.16,137.11,13.91640451]
[1741446276199,20.59856608,137.16,137.11,13.91640451]
[1741446276515,0.14216157,137.14,137.1,19.96340451]
[1741446276729,0.14216157,137.14,137.1,27.25720451]
[1741446278002,0.14216157,137.15,137.1,27.25720451]
[1741446280508,7.43346157,137.15,137.1,27.25720451]
[1741446280732,21.34986608,137.15,137.1,27.25720451]
[1741446281006,0.14216157,137.15,137.1,27.25720451]
[1741446282244,13.91640451,137.13,137.07,6.5595]
[1741446282545,14.05856608,137.12,137.07,20.47590451]
[1741446283448,14.05856608,137.12,137.07,27.77130451]
[1741446283736,14.05856608,137.12,137.07,20.47590451]
[1741446283937,14.05856608,137.12,137.07,27.77140451]
[1741446284112,0.14216157,137.12,137.07,27.77140451]
[1741446284308,21.35166608,137.12,137.07,13.91640451]
[1741446285042,21.35166608,137.12,137.05,113.7257]
[1741446285231,21.35166608,137.12,137.06,13.91640451]
[1741446285422,21.35166608,137.12,137.07,13.91640451]
[1741446288253,7.43526157,137.12,137.07,13.91640451]
[1741446288734,7.43526157,137.12,137.07,21.21180451]
[1741446289035,0.14216157,137.12,137.1,13.91640451]
[1741446289221,21.35036608,137.14,137.07,112.1954]
[1741446289425,21.35036608,137.14,137.09,13.91640451]
[1741446291659,21.35036608,137.14,137.09,21.21080451]
[1741446291947,0.14216157,137.15,137.11,13.91640451]
[1741446292330,0.14216157,137.15,137.14,13.91640451]
[1741446292537,21.34936608,137.16,137.11,118.81640451]
[1741446292722,21.34936608,137.16,137.11,13.91640451]
[1741446295353,0.14216157,137.16,137.11,13.91640451]
[1741446296658,7.43286157,137.16,137.11,13.91640451]
[1741446296956,0.14216157,137.16,137.11,21.20960451]
[1741446297257,7.43286157,137.16,137.11,13.91640451]
[1741446297663,21.34926608,137.16,137.11,13.91640451]
[1741446297845,21.34926608,137.16,137.1,20.00190451]
[1741446298053,0.14216157,137.14,137.09,13.91640451]
[1741446298357,0.14216157,137.1,137.05,106.4297]
[1741446298660,0.14216157,137.1,137.06,13.91640451]
[1741446299065,0.14216157,137.12,137.08,13.91640451]
[1741446299361,0.14216157,137.12,137.09,13.91640451]
[1741446299573,14.05856608,137.12,137.06,13.91640451]
[1741446300137,14.05856608,137.09,137.03,111.5278]
[1741446300365,14.05856608,137.09,137.03,125.44420451]
[1741446300545,14.05856608,137.09,137.04,13.91640451]
[1741446300746,14.05856608,137.09,137.03,20.54420451]
[1741446301489,21.35336608,137.09,137.03,20.54420451]
[1741446301665,14.05856608,137.07,137.03,0.033]
[1741446303301,0.14216157,137.11,137.06,21.86372705]
[1741446303497,29.29958862,137.11,137.05,21.86372705]
[1741446303671,0.14216157,137.09,137.05,21.86372705]
[1741446304074,0.14216157,137.09,137.04,21.86372705]
[1741446304987,0.14216157,137.09,137.05,21.86372705]
[1741446305380,0.14216157,137.1,137.05,21.86372705]
[1741446306182,0.14216157,137.1,137.06,21.86372705]
[1741446307601,0.14216157,137.11,137.06,29.15952705]
[1741446307789,0.14216157,137.11,137.07,21.86372705]
[1741446308802,0.14216157,137.11,137.06,7.2958]
[1741446309006,0.14216157,137.12,137.08,21.86372705]
[1741446309429,0.14216157,137.12,137.09,21.86372705]
[1741446309925,0.14216157,137.12,137.08,134.05832705]
[1741446310116,7.43526157,137.12,137.08,104.9]
[1741446310315,21.86372705,137.11,137.05,126.76372705]
[1741446310519,0.14216157,137.09,137.05,126.76372705]
[1741446311012,0.14216157,137.11,137.07,21.86372705]
[1741446311204,0.14216157,137.11,137.09,21.86372705]
[1741446311405,0.14216157,137.11,137.08,21.86372705]
[1741446311618,0.14216157,137.13,137.08,21.86372705]
[1741446312633,0.14216157,137.13,137.08,29.15862705]
[1741446312798,0.14216157,137.13,137.08,134.05862705]
[1741446313733,0.14216157,137.14,137.11,21.86372705]
[1741446313917,0.14216157,137.14,137.12,21.86372705]
[1741446314107,22.00588862,137.16,137.11,126.76372705]
[1741446314302,0.14216157,137.14,137.11,104.9]
[1741446315207,0.14216157,137.12,137.07,21.86372705]
[1741446315431,0.14216157,137.12,137.08,21.86372705]
[1741446315620,0.14216157,137.12,137.09,21.86372705]
[1741446315816,0.14216157,137.13,137.09,21.86372705]
[1741446316027,0.14216157,137.13,137.11,21.86372705]
[1741446316223,0.14216157,137.16,137.12,21.86372705]
[1741446316447,0.14216157,137.16,137.11,126.76372705]
[1741446317451,0.14216157,137.16,137.12,40.51337591]
[1741446317657,0.14216157,137.16,137.14,21.86372705]
[1741446317955,0.14216157,137.16,137.13,21.86372705]
[1741446319623,0.14216157,137.16,137.13,126.76372705]
[1741446320353,7.43306157,137.16,137.13,104.9]
[1741446323864,29.29678862,137.16,137.13,104.9]
[1741446324369,29.29678862,137.16,137.11,134.37772705]
[1741446325479,0.14216157,137.14,137.1,21.86372705]
[1741446325668,0.14216157,137.12,137.09,104.9]
[1741446325845,0.14216157,137.12,137.07,21.86372705]
[1741446326045,0.14216157,137.14,137.09,21.86372705]
[1741446326278,0.14216157,137.14,137.06,26.42004886]
[1741446326279,0.14216157,137.14,137.07,18.64964886]
[1741446326476,0.14216157,137.14,137.11,21.86372705]
[1741446326674,0.14216157,137.14,137.1,21.86372705]
[1741446327242,22.00588862,137.14,137.08,21.86372705]
[1741446327567,0.14216157,137.14,137.09,21.86372705]
[1741446327747,0.14216157,137.14,137.1,21.86372705]
[1741446328341,0.14216157,137.14,137.09,21.86372705]
[1741446328564,0.14216157,137.12,137.08,21.86372705]
[1741446329274,0.14216157,137.12,137.08,104.9]
[1741446329584,0.14216157,137.1,137.08,104.9]
[1741446329791,29.30028862,137.1,137.06,104.9]
[1741446330075,29.30028862,137.1,137.05,104.9]
[1741446330289,0.14216157,137.08,137.05,104.9]
[1741446330755,22.00588862,137.08,137.05,104.9]
[1741446331388,22.00588862,137.08,137.03,0.033]
[1741446331573,22.00588862,137.08,137.03,104.933]
[1741446331574,0.14216157,137.06,137.03,104.933]
[1741446331884,7.43856157,137.06,137.03,104.933]
[1741446333604,0.14216157,137.08,137.03,126.79672705]
[1741446333797,7.43716157,137.08,137.04,21.86372705]
[1741446334317,0.14216157,137.04,137.03,0.033]
[1741446335367,22.00588862,137.06,137.03,0.033]
[1741446335797,7.43846157,137.06,137.03,0.033]
[1741446336007,29.30218862,137.06,137.03,0.033]
[1741446336510,22.00588862,137.06,137.03,0.033]
[1741446336696,0.14216157,137.06,137.03,0.033]
[1741446337207,0.14216157,137.06,137.03,126.79672705]
[1741446337371,0.14216157,137.07,137.04,21.86372705]
[1741446337572,0.14216157,137.07,137.03,126.79672705]
[1741446338951,0.14216157,137.08,137.03,126.79672705]
[1741446339538,22.00588862,137.08,137.03,104.933]
[1741446339752,0.14216157,137.04,137.03,104.933]
[1741446339913,0.14216157,137.04,137.03,0.033]
[1741446342737,29.30298862,137.04,137.03,0.033]
[1741446343513,0.14216157,137.04,137.03,0.033]
[1741446344323,22.00588862,137.07,137.03,0.033]
[1741446345242,29.30148862,137.07,137.03,0.033]
[1741446345452,0.14216157,137.05,137.03,0.033]
[1741446346270,21.86372705,137.04,137.03,0.033]
[1741446346555,22.00588862,137.04,137.03,0.033]
[1741446348338,29.30298862,137.04,137.03,0.033]
[1741446349073,28.58718862,137.01,137.0,0.6668]
[1741446349249,0.14216157,136.99,136.94,2.1586358]
[1741446349441,22.00588862,136.95,136.94,2.1586358]
[1741446349751,0.14216157,136.95,136.94,2.1586358]
[1741446350263,57.44406157,136.95,136.94,1e-08]
[1741446350455,57.44406157,136.95,136.9,1.05548417]
[1741446350456,0.14216157,136.94,136.9,1.05548417]
[1741446350636,0.14216157,136.91,136.9,1.05548417]
[1741446350842,22.00588862,136.91,136.9,0.55548417]
[1741446351270,0.14216157,136.91,136.9,0.55548417]
[1741446351736,0.14216157,136.96,136.9,22.41921122]
[1741446351939,22.00588862,136.96,136.9,127.31921122]
[1741446352140,0.14216157,136.94,136.9,105.45548417]
[1741446352343,22.00588862,136.94,136.9,107.77644637]
[1741446352568,0.14216157,136.92,136.9,107.77644637]
[1741446352743,0.14216157,136.92,136.91,21.86372705]
[1741446353059,0.14216157,136.95,136.9,24.74017342]
[1741446353362,0.14216157,136.95,136.9,129.64017342]
[1741446353570,22.00588862,136.95,136.9,129.64017342]
[1741446353960,22.00588862,136.95,136.9,107.77644637]
[1741446354161,0.14216157,136.95,136.91,21.86372705]
[1741446355374,7.44406157,136.95,136.9,129.67317342]
[1741446355548,29.30778862,136.95,136.9,129.67317342]
[1741446355753,29.30778862,136.95,136.9,107.80944637]
[1741446356051,29.30778862,136.95,136.9,107.77644637]
[1741446356670,29.30778862,136.95,136.9,129.64017342]
[1741446357306,29.30778862,136.95,136.9,107.77644637]
[1741446357582,0.14216157,136.93,136.9,107.77644637]
[1741446358575,0.14216157,136.94,136.9,107.77644637]
[1741446358874,0.14216157,136.92,136.9,107.77644637]
[1741446359065,0.14216157,136.92,136.9,24.74017342]
[1741446359383,0.14216157,136.92,136.9,2.87644637]
[1741446360974,0.14216157,136.93,136.91,21.86372705]
[1741446361182,0.14216157,136.93,136.9,24.74017342]